[Event "RUS Cup Final Men 2018"]
[Site "Khanty-Mansiysk"]
[Date "2018.12.06"]
[Round "1.4"]
[White "Pridorozhni, Aleksei"]
[Black "Sarana, Alexey"]
[Result "*"]
[ECO "B90"]
[WhiteElo "2567"]
[BlackElo "2618"]
[Annotator "RC"]
[PlyCount "40"]
[EventDate "2018.12.05"]
[EventType "k.o."]
[EventCountry "RUS"]
[SourceTitle "playchess.com"]
[Source "ChessBase"]
[SourceQuality "1"]
[TimeControl "900+10"]

1. e4 {[%emt 0:00:00]} c5 {[%emt 0:00:00]} 2. Nf3 {[%emt 0:00:00]} d6 {[%emt 0:00:00]} 3. d4 {[%emt 0:00:00]} cxd4 {[%emt 0:00:00]} 4. Nxd4 {[%emt 0:00:00]} Nf6 {[%emt 0:00:00]} 5. Nc3 {[%emt 0:00:00]} a6 {[%emt 0:00:11]} 6. Nb3 {[%emt 0:00:01]} Nbd7 {[%emt 0:00:14]} 7. g4 {[%emt 0:00:29]} b5 {[%emt 0:00:01]} 8. g5 {[%emt 0:00:42]} b4 {[%emt 0:00:01]} 9. Nd5 {[%emt 0:00:01]} Nxd5 {[%emt 0:00:24]} 10. exd5 {[%emt 0:00:02]} g6 {[%emt 0:00:20]} 11. Qd4 {[%emt 0:01:02]} Ne5 {[%emt 0:00:02]} 12. Qxb4 {[%emt 0:00:06]} Bg7 {[%emt 0:00:08]} 13. Be2 {[%emt 0:01:42]} a5 {[%emt 0:01:25]} 14. Qa4+ {[%emt 0:01:13]} Bd7 {[%emt 0:00:02]} 15. Bb5 {[%emt 0:00:02]} O-O {[%emt 0:00:10]} 16. Be3 {[%emt 0:00:37]} Bg4 {[%emt 0:00:48]} 17. f4 {[%emt 0:01:07]} Nd7 {[%emt 0:01:43]} 18. Rg1 {[%emt 0:00:23]} Bf5 {[%emt 0:00:59]} 19. O-O-O {[%emt 0:03:58]} Nb6 {[%emt 0:00:10]} 20. Bxb6 {[%emt 0:01:25]} Qxb6 {[%emt 0:00:01]} *